bitfinex/quotes_SOLUSD_20250416
["timestamp","ask_amount","ask_price","bid_price","bid_amount"]
[1744843907427,82.8,132.25,132.22,11.24309669]
[1744843907728,82.8,132.25,132.23,11.24309669]
[1744843907938,82.8,132.25,132.22,11.24309669]
[1744843908110,90.36154176,132.25,132.22,11.24309669]
[1744843911315,82.8,132.25,132.22,11.24309669]
[1744843913742,90.36158766,132.25,132.22,11.24309669]
[1744843914943,101.60468435,132.25,132.2,26.0]
[1744843915244,101.60468435,132.25,132.2,37.24309669]
[1744843916442,90.36234794,132.24,132.2,37.24309669]
[1744843917415,90.36234794,132.24,132.21,11.24309669]
[1744843919334,90.36234794,132.24,132.22,11.24309669]
[1744843919542,82.8,132.24,132.22,11.24309669]
[1744843920343,82.8,132.24,132.2,33.56428766]
[1744843920532,82.8,132.24,132.22,11.24309669]
[1744843920842,82.8,132.24,132.23,11.24309669]
[1744843922542,90.36201254,132.24,132.22,11.24309669]
[1744843922722,82.8,132.24,132.22,11.24309669]
[1744843925541,90.36216397,132.24,132.22,11.24309669]
[1744843927950,82.8,132.24,132.23,11.24309669]
[1744843929751,7.7664,132.26,132.23,18.80567704]
[1744843929953,0.063,132.26,132.25,11.24309669]
[1744843931628,0.063,132.26,132.24,11.24309669]
[1744843931860,0.063,132.26,132.23,37.24309669]
[1744843932063,0.063,132.26,132.24,11.24309669]
[1744843933846,0.063,132.26,132.23,37.24309669]
[1744843934466,0.063,132.26,132.24,11.24309669]
[1744843935868,7.62386496,132.26,132.24,11.24309669]
[1744843938567,7.62386496,132.26,132.23,37.24309669]
[1744843939867,90.42386496,132.26,132.23,37.24309669]
[1744843940774,90.42386496,132.26,132.23,11.24309669]
[1744843941863,0.063,132.26,132.25,11.24309669]
[1744843948451,0.063,132.26,132.24,7.56169343]
[1744843948645,0.063,132.26,132.25,11.24309669]
[1744843950647,0.063,132.26,132.25,18.80453336]
[1744843955172,0.063,132.26,132.25,11.24309669]
[1744843955379,0.063,132.26,132.24,11.24309669]
[1744843957075,0.063,132.26,132.25,11.24309669]
[1744843960893,0.063,132.26,132.24,11.24309669]
[1744843962360,0.063,132.26,132.22,33.56290862]
[1744843962561,0.063,132.26,132.23,11.24309669]
[1744843962778,100.05959669,132.25,132.2,11.24309669]
[1744843962991,100.05959669,132.25,132.14,33.06788643]
[1744843962992,11.24309669,132.21,132.14,33.06788643]
[1744843963316,94.04309669,132.2,132.15,7.56715853]
[1744843963587,89.324,132.2,132.14,11.24309669]
[1744843963890,11.24309669,132.19,132.15,11.24309669]
[1744843964088,11.24309669,132.18,132.14,11.24309669]
[1744843964295,101.60911015,132.17,132.13,11.24309669]
[1744843967898,101.60911015,132.17,132.12,18.8118265]
[1744843968104,101.60911015,132.17,132.12,11.24309669]
[1744843968484,101.60911015,132.17,132.12,18.81194459]
[1744843969305,82.8,132.16,132.13,11.24309669]
[1744843971011,90.36668438,132.16,132.12,11.24309669]
[1744843971808,82.8,132.16,132.12,11.24309669]
[1744843973589,82.8,132.16,132.11,7.56921063]
[1744843973590,82.8,132.16,132.13,11.24309669]
[1744843976099,90.36672535,132.16,132.13,11.24309669]
[1744843976398,11.24309669,132.14,132.09,11.24309669]
[1744843976585,94.04309669,132.13,132.09,11.24309669]
[1744843977403,82.8,132.13,132.09,11.24309669]
[1744843977793,82.8,132.13,132.1,11.24309669]
[1744843978200,90.36831262,132.13,132.1,11.24309669]
[1744843978811,82.8,132.13,132.1,11.24309669]
[1744843980832,90.36842781,132.13,132.1,11.24309669]
[1744843981018,82.8,132.12,132.09,11.24309669]
[1744843981599,91.96539171,132.12,132.08,37.24309669]
[1744843982536,103.2084884,132.12,132.08,37.24309669]
[1744843982833,17.76579669,132.1,132.06,0.03]
[1744843983036,82.8,132.09,132.06,11.27309669]
[1744843983329,82.8,132.09,132.06,0.03]
[1744843983623,82.8,132.09,132.06,11.27309669]
[1744843983830,1.5952,132.07,132.06,0.03]
[1744843984033,12.83829669,132.07,132.06,0.03]
[1744843984325,12.98045826,132.07,132.06,0.03]
[1744843985221,20.55220051,132.07,132.06,0.03]
[1744843985401,39.48617251,132.07,132.06,0.03]
[1744843988929,9.30910382,132.07,132.06,0.03]
[1744843989129,1.5952,132.07,132.06,0.03]
[1744843989726,15.52,132.09,132.06,0.03]
[1744843990017,23.09074655,132.09,132.06,0.03]
[1744843993231,0.14216157,132.08,132.06,0.03]
[1744843993417,11.38525826,132.08,132.06,0.03]
[1744843993821,0.14216157,132.08,132.06,0.03]
[1744843994335,11.38525826,132.08,132.06,0.03]
[1744843995525,18.95698698,132.08,132.06,0.03]
[1744843995936,7.71389029,132.08,132.06,0.03]
[1744843996935,18.95698698,132.08,132.06,0.03]
[1744843997742,7.71389029,132.08,132.06,0.03]
[1744843998343,23.09082286,132.09,132.06,0.03]
[1744843998545,15.52,132.09,132.06,0.03]
[1744843998839,15.52,132.09,132.06,11.27309669]
[1744843999045,23.09076141,132.09,132.06,0.03]
[1744843999942,6.1284,132.13,132.06,0.03]
[1744844000135,13.69694402,132.13,132.1,11.24309669]
[1744844000330,17.066,132.14,132.11,11.24309669]
[1744844000937,17.066,132.14,132.1,11.24309669]
[1744844001438,24.63381935,132.14,132.11,11.24309669]
[1744844002634,107.43381935,132.14,132.11,11.24309669]
[1744844005745,99.866,132.14,132.11,11.24309669]
[1744844006350,107.43374349,132.14,132.11,11.24309669]
[1744844007252,107.43374349,132.14,132.1,11.24309669]
[1744844007433,82.8,132.13,132.1,11.24309669]
[1744844007744,90.36874401,132.13,132.09,11.24309669]
[1744844008047,82.94216157,132.12,132.08,11.24309669]
[1744844008856,94.18525826,132.12,132.08,11.24309669]
[1744844010253,7.5694497,132.11,132.08,11.24309669]
[1744844010461,7.5694497,132.11,132.07,11.24309669]
[1744844010650,82.8,132.1,132.07,11.24309669]
[1744844010871,82.8,132.1,132.08,11.24309669]
[1744844011151,82.8,132.1,132.09,11.24309669]
[1744844011336,82.8,132.1,132.08,11.24309669]
[1744844012469,82.8,132.1,132.09,11.24309669]
[1744844013539,82.8,132.1,132.09,18.81369249]
[1744844014237,82.8,132.1,132.09,63.78607925]
[1744844015057,82.8,132.1,132.09,18.81369249]
[1744844015854,82.8,132.1,132.09,11.24309669]
[1744844016249,7.5686157,132.13,132.09,11.24309669]
[1744844016759,7.5686157,132.13,132.1,11.24309669]
[1744844016960,82.8,132.12,132.1,11.24309669]
[1744844018762,82.8,132.12,132.09,11.24309669]
[1744844021245,90.3689659,132.12,132.09,11.24309669]
[1744844027672,90.3689659,132.12,132.08,18.81418689]
[1744844028287,90.3689659,132.12,132.09,11.24309669]
[1744844032573,82.8,132.12,132.1,11.24309669]
[1744844032775,82.8,132.12,132.11,11.24309669]
[1744844033360,82.8,132.12,132.08,7.57112939]
[1744844033361,82.8,132.12,132.1,11.24309669]
[1744844039483,82.8,132.12,132.09,11.24309669]
[1744844040679,90.36895117,132.12,132.09,11.24309669]
[1744844041193,90.36887999,132.12,132.09,11.24309669]
[1744844041483,90.36887999,132.12,132.08,11.24309669]
[1744844041784,91.91477999,132.12,132.08,11.24309669]
[1744844042291,90.36887999,132.12,132.1,11.24309669]
[1744844042461,82.8,132.12,132.1,11.24309669]
[1744844043283,90.3690118,132.12,132.09,11.24309669]
[1744844045391,82.8,132.12,132.09,11.24309669]
[1744844046473,82.8,132.12,132.1,11.24309669]
[1744844051194,90.36897412,132.12,132.09,11.24309669]
[1744844051491,90.36897412,132.12,132.08,11.24309669]
[1744844052391,90.36897412,132.12,132.09,11.24309669]
[1744844057489,90.36897412,132.12,132.08,11.24309669]
[1744844057685,82.8,132.11,132.07,11.24309669]
[1744844057884,82.8,132.1,132.07,11.24309669]
[1744844059597,7.5705958,132.09,132.07,11.24309669]
[1744844060280,82.8,132.1,132.08,11.24309669]
[1744844062492,98.32,132.12,132.09,11.24309669]
[1744844062699,98.32,132.12,132.11,11.24309669]
[1744844062993,82.8,132.14,132.11,11.24309669]
[1744844063203,82.8,132.14,132.13,11.24309669]
[1744844063390,82.8,132.14,132.12,11.24309669]
[1744844063594,101.61091777,132.14,132.08,26.0]
[1744844063777,101.61091777,132.14,132.07,7.57162866]
[1744844063778,94.04309669,132.13,132.09,11.24309669]
[1744844064279,82.8,132.13,132.09,11.24309669]
[1744844064901,7.56887677,132.12,132.09,11.24309669]
[1744844067087,90.3684779,132.13,132.09,11.24309669]
[1744844068200,90.3684779,132.13,132.1,11.24309669]
[1744844069006,82.8,132.12,132.1,11.24309669]
[1744844074109,82.8,132.12,132.11,11.24309669]
[1744844074287,82.8,132.15,132.11,11.24309669]
[1744844074482,82.8,132.14,132.12,11.24309669]
[1744844074695,82.8,132.14,132.11,11.24309669]
[1744844075883,94.18525826,132.13,132.07,26.0]
[1744844076097,82.8,132.12,132.08,11.24309669]
[1744844076304,82.8,132.12,132.07,37.24309669]
[1744844076886,82.8,132.12,132.08,11.24309669]
[1744844077512,90.36944641,132.12,132.08,11.24309669]
[1744844079093,82.8,132.12,132.09,11.24309669]
[1744844079606,82.8,132.12,132.1,11.24309669]
[1744844081412,98.32,132.14,132.11,11.24309669]
[1744844081615,82.8,132.14,132.13,11.24309669]
[1744844084933,82.8,132.14,132.13,18.81140063]
[1744844085295,84.3144,132.16,132.13,18.81140063]
[1744844085495,84.3144,132.16,132.14,11.24309669]
[1744844085698,91.88106485,132.16,132.12,26.0]
[1744844085897,91.88106485,132.16,132.12,11.24309669]
[1744844086305,91.88106485,132.16,132.13,11.24309669]
[1744844092717,103.12416154,132.16,132.11,11.24309669]
[1744844093105,84.3144,132.16,132.13,11.24309669]
[1744844093621,84.3144,132.16,132.14,11.24309669]
[1744844094121,82.8,132.16,132.15,11.24309669]
[1744844101733,82.8,132.16,132.1,11.24309669]
[1744844101734,84.4532,132.15,132.1,11.24309669]
[1744844101939,95.69629669,132.15,132.1,11.24309669]
[1744844102617,100.35635826,132.14,132.09,11.24309669]
[1744844103230,7.56830394,132.13,132.1,11.24309669]
[1744844103432,82.8,132.12,132.1,11.24309669]
[1744844104036,82.8,132.12,132.08,7.57103333]
[1744844104239,82.8,132.12,132.09,11.24309669]
[1744844104434,82.8,132.12,132.08,11.24309669]
[1744844105441,90.36908956,132.12,132.09,11.24309669]
[1744844108214,82.8,132.12,132.09,11.24309669]
[1744844109440,90.36898908,132.12,132.09,11.24309669]
[1744844109935,82.8,132.12,132.1,11.24309669]
[1744844110142,82.8,132.12,132.1,18.81306056]
[1744844110838,1.6532,132.15,132.11,11.24309669]
[1744844111051,82.8,132.16,132.14,11.24309669]
[1744844111339,82.863,132.18,132.15,11.24309669]
[1744844111549,82.863,132.18,132.16,11.24309669]
[1744844111720,82.863,132.18,132.15,11.24309669]
[1744844111925,90.42858435,132.18,132.14,11.24309669]
[1744844113639,101.67168104,132.18,132.12,33.56867057]
[1744844113843,11.24309669,132.16,132.12,11.24309669]
[1744844114144,94.04309669,132.17,132.12,11.24309669]
[1744844114925,7.56658595,132.16,132.12,11.24309669]
[1744844115533,25.04378264,132.16,132.11,11.24309669]
[1744844115738,82.8,132.15,132.11,11.24309669]
[1744844116241,94.04309669,132.15,132.1,37.24309669]
[1744844116448,82.8,132.15,132.11,11.24309669]
[1744844116948,82.8,132.14,132.11,11.24309669]
[1744844117947,82.8,132.14,132.12,11.24309669]
[1744844120547,82.8,132.14,132.12,18.8118085]
[1744844120750,82.8,132.14,132.13,11.24309669]
[1744844121951,89.0341,132.16,132.13,11.24309669]
[1744844122550,89.0341,132.16,132.13,18.81139959]
[1744844122744,89.0341,132.16,132.14,11.24309669]
[1744844122952,96.60069222,132.16,132.13,11.24309669]
[1744844123750,89.0341,132.16,132.13,11.24309669]
[1744844125052,89.0341,132.16,132.13,18.81136376]
[1744844125236,82.8,132.16,132.14,11.24309669]
[1744844125441,82.8,132.16,132.15,11.24309669]
[1744844126533,82.8,132.16,132.15,18.81025522]
[1744844130535,0.063,132.18,132.15,11.24309669]
[1744844130736,0.063,132.18,132.16,11.24309669]
[1744844130961,0.063,132.18,132.15,11.24309669]
[1744844131154,0.063,132.18,132.16,11.24309669]
[1744844134359,0.063,132.18,132.17,11.24309669]
[1744844136157,0.063,132.18,132.17,18.80911015]
[1744844142763,0.063,132.2,132.19,44.64964886]
[1744844143065,0.063,132.2,132.19,56.17706869]
[1744844144066,0.063,132.2,132.19,63.74193743]
[1744844144562,0.063,132.21,132.2,18.933972]
[1744844144756,0.063,132.21,132.2,30.31923026]
[1744844146166,0.063,132.21,132.2,37.74136521]
[1744844150776,0.063,132.21,132.2,18.80739321]
[1744844156677,0.063,132.21,132.19,37.24309669]
[1744844156885,0.063,132.21,132.2,11.24309669]
[1744844159811,0.063,132.21,132.2,18.80739321]
[1744844160374,0.063,132.21,132.2,11.24309669]
[1744844160678,0.063,132.21,132.2,18.80739321]
[1744844161798,0.063,132.21,132.19,33.56462503]
[1744844162000,0.063,132.21,132.2,11.24309669]
[1744844163194,0.063,132.21,132.2,18.80739321]
[1744844163893,0.063,132.21,132.2,11.24309669]
[1744844164404,0.063,132.21,132.2,18.80739321]
[1744844166197,0.063,132.21,132.2,37.74136521]
[1744844166401,0.063,132.21,132.2,37.88352678]
[1744844166579,0.063,132.22,132.21,45.07613357]
[1744844166786,0.063,132.22,132.21,71.77923026]
[1744844167496,0.063,132.22,132.21,71.63706869]
[1744844167892,0.063,132.22,132.21,79.20079306]
[1744844171483,0.063,132.22,132.21,79.34295463]
[1744844172802,0.063,132.23,132.21,124.31534139]
[1744844173005,0.063,132.23,132.22,30.17706869]
[1744844173807,0.063,132.27,132.25,44.79181043]
[1744844173992,0.063,132.29,132.28,26.0]
[1744844174185,0.063,132.29,132.28,37.24309669]
[1744844175008,0.063,132.29,132.28,44.80281849]
[1744844175526,0.063,132.29,132.28,26.0]
[1744844175820,0.063,132.29,132.28,37.24309669]
[1744844183114,0.063,132.29,132.28,44.80281849]
[1744844189619,0.063,132.29,132.28,50.82852046]
[1744844189918,0.063,132.29,132.28,44.80281849]
[1744844191212,0.063,132.29,132.28,26.0]
[1744844191719,0.063,132.29,132.28,37.24309669]
[1744844194631,0.063,132.29,132.28,44.80281849]
[1744844196925,0.063,132.29,132.28,37.24309669]
[1744844198432,0.063,132.29,132.28,44.80281849]
[1744844200724,0.063,132.29,132.28,37.24309669]
[1744844203205,0.063,132.29,132.26,37.24309669]
[1744844208744,0.063,132.29,132.27,11.24309669]
[1744844210223,0.063,132.29,132.26,11.24309669]
[1744844211065,0.063,132.29,132.27,11.24309669]
[1744844214442,0.063,132.29,132.28,11.24309669]
[1744844219944,1.6418,132.28,132.21,0.063]
[1744844220137,11.24309669,132.26,132.21,18.86954972]
[1744844220337,11.24309669,132.26,132.21,11.30609669]
[1744844220741,7.56143667,132.25,132.21,11.30609669]
[1744844220942,18.80453336,132.25,132.21,0.063]
[1744844221325,18.80453336,132.25,132.21,11.30609669]
[1744844221326,7.56143667,132.25,132.21,11.30609669]
[1744844221523,7.56143667,132.25,132.21,18.86979255]
[1744844221942,7.56143667,132.25,132.22,11.24309669]
[1744844222651,7.56086496,132.26,132.22,11.24309669]
[1744844222849,101.60355203,132.27,132.22,11.24309669]
[1744844224954,101.60355203,132.27,132.23,11.24309669]
[1744844225857,101.60355203,132.27,132.21,7.62646534]
[1744844226033,101.60355203,132.27,132.23,11.24309669]
[1744844228138,82.8,132.27,132.24,11.24309669]
[1744844228349,90.36038906,132.27,132.24,11.24309669]
[1744844228960,90.36038906,132.27,132.21,7.62647019]
[1744844229135,90.36038906,132.27,132.23,11.24309669]
[1744844230261,90.36038906,132.27,132.24,11.24309669]
[1744844233374,90.36038906,132.27,132.23,11.24309669]
[1744844234975,11.24309669,132.26,132.21,0.063]
[1744844235148,11.24309669,132.25,132.21,0.063]
[1744844235350,1.6613,132.23,132.21,0.063]
[1744844237068,9.22410254,132.23,132.21,0.063]
[1744844237258,1.6613,132.23,132.21,0.063]
[1744844238152,82.8,132.25,132.22,11.24309669]
[1744844238354,90.36157843,132.25,132.22,11.24309669]
[1744844239463,82.8,132.25,132.22,11.24309669]
[1744844240056,90.36153742,132.25,132.21,11.30609669]
[1744844243066,101.60463411,132.25,132.21,0.063]
[1744844243363,90.36153742,132.25,132.21,11.30609669]
[1744844243873,90.36153742,132.25,132.21,0.063]
[1744844244173,90.36153742,132.25,132.21,11.30609669]
[1744844244973,90.36217286,132.24,132.21,11.30609669]
[1744844246470,82.8,132.24,132.22,11.24309669]
[1744844246882,82.8,132.24,132.21,7.62656933]
[1744844247071,82.8,132.24,132.22,11.24309669]
[1744844247374,82.8,132.24,132.23,11.24309669]
[1744844248067,82.8,132.24,132.22,11.24309669]
[1744844248258,82.8,132.24,132.21,11.30609669]
[1744844248975,82.8,132.24,132.22,11.24309669]
[1744844252879,82.8,132.24,132.21,0.063]
[1744844253079,82.8,132.24,132.22,11.24309669]
[1744844253380,82.8,132.24,132.23,11.24309669]
[1744844255886,82.8,132.24,132.22,11.24309669]
[1744844256764,90.36104136,132.26,132.22,18.80612207]
[1744844257387,82.8,132.26,132.22,18.80612207]
[1744844258469,82.8,132.26,132.24,11.24309669]
[1744844258874,82.8,132.26,132.22,7.56302538]
[1744844259182,90.36094845,132.26,132.22,11.24309669]
[1744844259886,11.24309669,132.25,132.21,0.063]
[1744844260184,7.56200846,132.24,132.21,0.063]
[1744844261787,18.80479977,132.25,132.21,0.063]
[1744844262784,82.8,132.24,132.21,0.063]
[1744844264189,82.8,132.24,132.21,11.30609669]
[1744844277274,82.8,132.24,132.21,18.86974201]
[1744844279797,90.36220659,132.24,132.21,0.063]
[1744844280003,1.6586,132.22,132.21,0.063]
[1744844280196,12.90169669,132.22,132.21,0.063]
[1744844281501,20.46484901,132.22,132.21,0.063]
[1744844281795,12.90169669,132.22,132.21,0.063]
[1744844282003,1.6586,132.22,132.21,0.063]
[1744844283602,6.4209,132.23,132.21,0.063]
[1744844283801,6.4209,132.23,132.21,11.30609669]
[1744844284501,6.4209,132.23,132.21,0.063]
[1744844286124,89.2209,132.23,132.21,0.063]
[1744844286499,96.78352927,132.23,132.21,0.063]
[1744844290080,89.2209,132.23,132.21,0.063]
[1744844290807,96.78348775,132.23,132.21,0.063]
[1744844292608,11.24309669,132.22,132.21,0.063]
[1744844295118,18.80624901,132.22,132.21,0.063]
[1744844296095,7.56315232,132.22,132.21,0.063]
[1744844297027,89.2209,132.23,132.21,0.063]
[1744844297190,82.8,132.23,132.22,11.24309669]
[1744844297393,1.6438,132.25,132.22,11.24309669]
[1744844297394,82.8,132.25,132.22,11.24309669]
[1744844297611,82.8,132.25,132.23,11.24309669]
[1744844299219,82.8,132.25,132.24,11.24309669]
[1744844300822,82.8,132.27,132.24,11.24309669]
[1744844304024,82.8,132.27,132.25,11.24309669]
[1744844304318,82.8,132.28,132.26,11.24309669]
[1744844307222,0.063,132.29,132.26,11.24309669]
[1744844307408,7.62229642,132.29,132.26,11.24309669]
[1744844309217,0.063,132.29,132.26,11.24309669]
[1744844309630,0.063,132.29,132.27,11.24309669]
[1744844311311,0.063,132.29,132.26,11.24309669]
[1744844312432,82.863,132.29,132.26,11.24309669]
[1744844313032,82.863,132.29,132.24,7.5617487]
[1744844313033,82.863,132.29,132.25,11.24309669]
[1744844313339,82.863,132.29,132.26,11.24309669]
[1744844313634,90.42241601,132.29,132.26,11.24309669]
[1744844315123,82.8,132.28,132.24,11.24309669]
[1744844315628,7.56029333,132.27,132.24,11.24309669]
[1744844315832,7.56029333,132.27,132.22,7.56281728]
[1744844316009,82.8,132.28,132.26,11.24309669]
[1744844317238,82.8,132.28,132.27,11.24309669]
[1744844317837,0.063,132.29,132.27,11.24309669]
[1744844320435,0.063,132.29,132.28,11.24309669]
[1744844321841,0.063,132.29,132.24,7.56200846]
[1744844322144,11.24309669,132.27,132.22,11.24309669]
[1744844322329,11.24309669,132.25,132.21,0.063]
[1744844323219,11.24309669,132.25,132.21,11.30609669]
[1744844323420,7.56200846,132.24,132.21,11.30609669]
[1744844325042,7.56200846,132.24,132.21,0.063]
[1744844325219,7.56200846,132.24,132.21,11.30609669]
[1744844326240,18.80479804,132.25,132.21,11.30609669]
[1744844326443,7.56170135,132.25,132.21,11.30609669]
[1744844327147,82.8,132.24,132.21,11.30609669]
[1744844327448,82.8,132.24,132.22,11.24309669]
[1744844330924,82.8,132.24,132.21,0.063]
[1744844331155,82.8,132.24,132.21,11.30609669]
[1744844332451,90.36211792,132.24,132.21,11.30609669]
[1744844332834,90.36211792,132.24,132.21,0.063]
[1744844333251,90.36211792,132.24,132.21,11.30609669]
[1744844336858,101.60521461,132.24,132.21,0.063]
[1744844338257,18.80605231,132.23,132.21,0.063]
[1744844338858,101.60605231,132.23,132.21,0.063]
[1744844339636,19.18575826,132.22,132.21,0.063]
[1744844339832,101.98575826,132.22,132.21,0.063]
[1744844340037,117.40575826,132.22,132.21,0.063]
[1744844340236,143.90288258,132.22,132.21,1e-08]
[1744844340560,61.10288258,132.22,132.21,1e-08]
[1744844340756,18.933972,132.21,132.2,0.063]
[1744844340954,30.17706869,132.21,132.2,0.063]
[1744844341344,30.31923026,132.21,132.16,0.063]
[1744844341540,11.24309669,132.17,132.16,0.063]
[1744844342340,18.80911015,132.17,132.16,0.063]
[1744844342569,7.56601346,132.17,132.16,0.063]
[1744844345870,18.80911015,132.17,132.16,0.063]
[1744844347148,20.43521015,132.17,132.16,0.063]
[1744844348683,9.19211346,132.17,132.16,0.063]
[1744844349051,20.43521015,132.17,132.16,0.063]
[1744844349873,9.19211346,132.17,132.16,0.063]
[1744844350049,7.56429652,132.2,132.16,0.063]
[1744844350254,7.56429652,132.2,132.17,11.24309669]
[1744844350871,82.8,132.19,132.17,11.24309669]
[1744844353265,82.8,132.19,132.16,11.30609669]
[1744844354079,90.36493648,132.19,132.16,11.30609669]
[1744844355059,11.24309669,132.18,132.16,0.063]
[1744844356078,90.36493648,132.19,132.16,0.063]
[1744844356079,18.80911015,132.17,132.16,0.063]
[1744844356280,54.93134372,132.17,132.16,0.063]
[1744844357559,80.93134372,132.17,132.16,1e-08]
[1744844359778,125.90373048,132.17,132.16,1e-08]
[1744844360486,0.14216157,132.16,132.14,0.03]
[1744844360679,30.17706869,132.15,132.14,0.03]
[1744844362182,37.38525826,132.15,132.14,0.03]
[1744844363189,18.81025522,132.15,132.14,0.03]
[1744844363368,7.56715853,132.15,132.14,0.03]
[1744844363688,37.88638879,132.15,132.14,0.03]
[1744844366889,56.17706869,132.14,132.13,0.063]
[1744844368189,18.95298945,132.14,132.13,0.063]
[1744844372894,37.88696145,132.14,132.13,0.063]
[1744844378198,37.88696145,132.14,132.1,0.063]
[1744844378403,11.38525826,132.13,132.1,0.063]
[1744844379706,18.9535622,132.13,132.1,0.063]
[1744844380088,0.14216157,132.11,132.1,0.063]
[1744844380283,26.80525826,132.11,132.1,0.063]
[1744844381809,34.37470796,132.11,132.1,0.063]
[1744844387409,23.13161127,132.11,132.1,0.063]
[1744844387610,34.37470796,132.11,132.1,0.063]
[1744844390712,23.13161127,132.11,132.1,0.063]
[1744844391011,34.37470796,132.11,132.1,0.063]
[1744844391596,34.23254639,132.11,132.1,0.063]
[1744844394194,22.9894497,132.11,132.1,0.063]
[1744844394813,34.23254639,132.11,132.1,0.063]
[1744844395094,34.37470796,132.11,132.1,0.063]
[1744844397726,22.9894497,132.11,132.1,0.063]
[1744844400509,15.42,132.11,132.1,0.063]
[1744844400709,7.56740249,132.15,132.1,11.30609669]
[1744844400912,7.56740249,132.15,132.12,11.24309669]
[1744844401544,11.24309669,132.17,132.1,1.7084]
[1744844401545,7.56629483,132.17,132.13,11.24309669]
[1744844401828,82.8,132.16,132.13,11.24309669]
[1744844402014,82.8,132.16,132.11,7.5694497]
[1744844402015,345.66609669,132.2,132.15,11.24309669]
[1744844402216,109.52609669,132.2,132.16,11.24309669]
[1744844402428,105.84753485,132.2,132.17,11.24309669]
[1744844402726,105.84753485,132.2,132.15,11.24309669]
[1744844402727,11.24309669,132.19,132.15,11.24309669]
[1744844402907,11.24309669,132.19,132.14,11.24309669]
[1744844403108,7.56544106,132.18,132.14,11.24309669]
[1744844403521,7.56544106,132.18,132.15,11.24309669]
[1744844403731,7.56544106,132.18,132.16,11.24309669]
[1744844403925,98.283,132.2,132.16,11.24309669]
[1744844404135,98.283,132.2,132.17,11.24309669]
[1744844404833,105.8474101,132.2,132.17,11.24309669]
[1744844405213,98.283,132.2,132.17,11.24309669]
[1744844405635,98.283,132.2,132.18,11.24309669]
[1744844405823,105.84732453,132.2,132.17,11.24309669]
[1744844406216,0.063,132.2,132.18,11.24309669]
[1744844406420,0.063,132.2,132.19,11.24309669]
[1744844407134,0.063,132.2,132.19,18.80796543]
[1744844408115,0.063,132.2,132.19,11.24309669]
[1744844409942,0.063,132.2,132.19,18.80796543]
[1744844411921,0.063,132.2,132.18,32.0008]
[1744844412238,0.063,132.2,132.16,48.98652269]
[1744844412539,0.063,132.2,132.17,11.24309669]
[1744844413319,0.063,132.2,132.18,11.24309669]
[1744844413524,0.063,132.2,132.19,11.24309669]
[1744844413839,0.063,132.2,132.18,11.24309669]
[1744844414041,0.063,132.2,132.16,37.24309669]
[1744844414242,0.063,132.2,132.16,44.80963387]
[1744844414542,0.063,132.2,132.17,11.24309669]
[1744844414843,0.063,132.2,132.18,11.24309669]
[1744844415217,0.063,132.2,132.19,11.24309669]
[1744844416249,0.063,132.2,132.18,11.24309669]
[1744844417046,0.063,132.2,132.19,11.24309669]
[1744844418245,0.063,132.2,132.18,11.24309669]
[1744844418545,0.063,132.2,132.19,11.24309669]
[1744844419242,0.063,132.2,132.18,11.24309669]
[1744844420735,0.063,132.2,132.17,7.56561375]
[1744844420943,0.063,132.2,132.18,11.24309669]
[1744844421148,0.063,132.2,132.16,33.56645241]
[1744844421449,11.24309669,132.18,132.14,11.24309669]
[1744844421641,94.04309669,132.17,132.12,44.81177894]
[1744844421837,94.04309669,132.17,132.12,11.24309669]
[1744844422044,94.04309669,132.16,132.12,11.24309669]
[1744844422250,94.04309669,132.16,132.1,7.63284882]
[1744844422460,11.24309669,132.14,132.1,0.063]
[1744844422848,82.8,132.16,132.1,18.8760742]
[1744844422849,11.24309669,132.15,132.1,18.8760742]
[1744844423247,11.24309669,132.15,132.11,11.24309669]
[1744844423248,18.81048865,132.15,132.11,11.24309669]
[1744844423450,82.8,132.16,132.13,11.24309669]
[1744844424449,82.8,132.16,132.14,11.24309669]